[Event "2nd Serbia Open Masters 2022"]
[Site "Novi Sad"]
[Date "2022.06.28"]
[Round "1.14"]
[White "Sahithi Varshini M"]
[Black "Sanal, Vahap"]
[Result "0-1"]
[ECO "C41"]
[WhiteElo "2312"]
[BlackElo "2575"]
[Annotator "RC"]
[PlyCount "113"]
[EventDate "2022.06.28"]
[EventType "swiss"]
[EventCountry "SRB"]
[SourceTitle "playchess.com"]
[Source "ChessBase"]
[SourceQuality "1"]
[TimeControl "40/5400+30:900+30"]

1. e4 {[%emt 0:00:18]} d6 {[%emt 0:00:58]} 2. d4 {[%emt 0:00:23]} Nf6 {[%emt 0:00:12]} 3. Nc3 {[%emt 0:00:23]} e5 {[%emt 0:00:10]} 4. Nf3 {[%emt 0:05:22]} Nbd7 {[%emt 0:00:35]} 5. Be3 {[%emt 0:09:02]} Be7 {[%emt 0:01:59]} 6. h3 {[%emt 0:01:10]} c6 {[%emt 0:01:07]} 7. a4 {[%emt 0:09:00]} O-O {[%emt 0:02:25]} 8. Bd3 {[%emt 0:09:13]} Re8 {[%emt 0:01:44]} 9. O-O {[%emt 0:00:09]} Qc7 {[%emt 0:00:53]} 10. Re1 {[%emt 0:02:49]} Nf8 {[%emt 0:00:21]} 11. a5 {[%emt 0:08:32]} Ng6 {[%emt 0:00:59]} 12. Bc4 {[%emt 0:01:16]} h6 {[%emt 0:00:32]} 13. Bb3 {[%emt 0:00:41]} Bf8 {[%emt 0:07:44]} 14. d5 {[%emt 0:04:39]} c5 {[%emt 0:07:56]} 15. Nd2 {[%emt 0:00:05]} Nf4 {[%emt 0:06:59]} 16. Bxf4 {[%emt 0:06:44]} exf4 {[%emt 0:00:14]} 17. Qf3 {[%emt 0:00:25]} g5 {[%emt 0:00:27]} 18. Nb5 {[%emt 0:00:30]} Qd8 {[%emt 0:04:07]} 19. Qc3 {[%emt 0:09:02]} Nd7 {[%emt 0:03:08]} 20. Nc4 {[%emt 0:06:51]} Ne5 {[%emt 0:00:41]} 21. Nxe5 {[%emt 0:04:13]} Rxe5 {[%emt 0:00:40]} 22. Na3 {[%emt 0:00:07]} Bg7 {[%emt 0:02:34]} 23. Qf3 {[%emt 0:00:41]} Re7 {[%emt 0:03:59]} 24. Nc4 {[%emt 0:00:25]} Be5 {[%emt 0:00:25]} 25. c3 {[%emt 0:02:42]} Qf8 {[%emt 0:01:43]} 26. Bd1 {[%emt 0:02:48]} Qg7 {[%emt 0:00:42]} 27. Qh5 {[%emt 0:00:30]} Bd7 {[%emt 0:00:54]} 28. Ba4 {[%emt 0:00:27]} Bc8 {[%emt 0:05:50]} 29. Bd1 {[%emt 0:00:07]} Bd7 {[%emt 0:01:20]} 30. Ba4 {[%emt 0:00:07]} Bxa4 {[%emt 0:00:39]} 31. Rxa4 {[%emt 0:00:08]} Kh7 {[%emt 0:00:14]} 32. Raa1 {[%emt 0:00:55]} Rg8 {[%emt 0:06:48]} 33. Kf1 {[%emt 0:01:05]} Qf8 {[%emt 0:00:36]} 34. a6 {[%emt 0:02:08]} b6 {[%emt 0:01:11]} 35. Na3 {[%emt 0:00:05]} Qe8 {[%emt 0:01:16]} 36. Qe2 {[%emt 0:00:07]} f6 {[%emt 0:01:55]} 37. Nb5 {[%emt 0:02:58]} h5 {[%emt 0:02:48]} 38. Qd3 {[%emt 0:00:12]} Qg6 {[%emt 0:02:35]} 39. Rad1 {[%emt 0:01:56]} Kh8 {[%emt 0:01:21]} 40. b4 {[%emt 0:00:00]} Qe8 {[%emt 0:00:00]} 41. bxc5 {[%emt 0:01:45]} bxc5 {[%emt 0:02:52]} 42. Rb1 {[%emt 0:01:00]} g4 {[%emt 0:02:07]} 43. hxg4 {[%emt 0:00:22]} Rg6 {[%emt 0:41:20]} 44. g5 Rxg5 {[%emt 0:00:00]} 45. Qh3 {[%emt 0:11:23]} Rg4 {[%emt 0:00:00]} 46. Rb2 {[%emt 0:00:57]} Kg7 {[%emt 0:00:00]} 47. Rd1 {[%emt 0:15:18]} Kh6 48. Rdb1 {[%emt 0:00:00]} Qg8 {[%emt 0:00:00]} 49. Na3 {[%emt 0:00:00]} f5 {[%emt 0:00:00]} 50. Rb7 {[%emt 0:00:00]} Reg7 {[%emt 0:00:00]} 51. Rb8 {[%emt 0:00:00]} Qh7 {[%emt 0:00:00]} 52. Re8 {[%emt 0:00:00]} fxe4 {[%emt 0:00:00]} 53. Rbb8 {[%emt 0:00:00]} Re7 {[%emt 0:00:00]} 54. Nc4 {[%emt 0:00:00]} Rxe8 {[%emt 0:00:00]} 55. Rxe8 {[%emt 0:00:00]} e3 {[%emt 0:00:00]} 56. Re6+ {[%emt 0:00:26]} Kg5 {[%emt 0:00:00]} 57. Kg1 {[%emt 0:03:34]} 0-1

[Event "2nd Serbia Open Masters 2022"]
[Site "Novi Sad"]
[Date "2022.06.28"]
[Round "1.15"]
[White "Kadric, Denis"]
[Black "Yordanov, Lachezar"]
[Result "1-0"]
[ECO "B23"]
[WhiteElo "2576"]
[BlackElo "2306"]
[Annotator "TA"]
[PlyCount "48"]
[EventDate "2022.06.28"]
[EventType "swiss"]
[EventCountry "SRB"]
[SourceTitle "playchess.com"]
[Source "ChessBase"]
[SourceQuality "1"]
[TimeControl "40/5400+30:900+30"]

{[%evp 9,48,2,0,-4,-14,-12,16,25,17,13,30,52,75,70,69,61,57,63,99,107,139,146,293,277,255,238,377,333,465,475,462,475,676,645,654,649,628,398,422,379,368]} 1. e4 {[%emt 0:00:03]} c5 {[%emt 0:00:09]} 2. Nc3 {[%emt 1:31:27]} d6 {[%emt 0:00:06]} 3. f4 {[%emt 0:01:13]} g6 {[%emt 0:00:00]} 4. Nf3 {[%emt 0:00:12]} Bg7 {[%emt 0:00:00]} 5. Bb5+ {[%emt 0:00:11]} Bd7 {[%emt 0:00:00]} 6. Bc4 {[%emt 0:00:41] B23: Closed Sicilian: Lines without g3.} Nc6 {[%emt 0:00:00]} 7. d3 {[%emt 0:00:13]} a6 {[%emt 0:00:00]} 8. O-O {[%emt 1:31:52] The position is equal.} b5 {[%emt 0:00:00]} 9. Bb3 {[%emt 0:00:46][%cal Oe4e5]} Nd4 {[%emt 0:00:00]} 10. Nxd4 {[%emt 0:07:19]} cxd4 {[%emt 0:00:00]} 11. Ne2 {[%emt 0:00:03]} Nf6 {[%emt 0:00:00] [#]} 12. e5 $146 {[%emt 0:07:29]} ({Predecessor:} 12. f5 gxf5 13. exf5 Ng4 14. Nf4 Nf6 15. Nh5 Kf8 16. Nxf6 exf6 17. Qh5 Be8 18. Bh6 {1-0 (27) Bernadskiy,V (2629)-Matinian,N (2470) Chess.com INT 2020}) 12... Ng4 {[%emt 0:00:00]} 13. h3 $36 {[%emt 0:00:07][%mdl 2048] White has the initiative.} Nh6 {[%emt 0:00:00]} 14. Nxd4 {[%emt 1:06:15]} dxe5 {[%emt 0:00:00]} 15. fxe5 {[%emt 0:00:03] [#] aiming for Bxh6.} Bxh3 {[%emt 0:00:00]} (15... e6 $16 {was called for.} 16. Qe1 Nf5) 16. c3 $18 {[%emt 0:06:03] Threatens to win with Bxh6.} ({Not} 16. gxh3 Qxd4+ 17. Kg2 O-O $11) 16... Bg4 {[%emt 0:00:00]} 17. Qe1 {[%emt 0:01:19]} e6 {[%emt 0:00:00]} (17... Nf5 {might work better.} 18. Qe4 h5 19. Qc6+ (19. Nxf5 Bxf5 20. Qc6+ Kf8 $16) 19... Kf8 20. Bxf7 Kxf7) 18. Qe4 {[%emt 0:03:03] And now Qc6+ would win.} Bf5 {[%emt 0:00:00]} 19. Qc6+ {[%emt 0:00:14]} Kf8 {[%emt 0:00:00]} 20. Bxe6 {[%emt 0:01:45]} ({Weaker is} 20. Bg5 Qe8 21. Qf3 Ng4 22. Nxe6+ (22. Nxf5 gxf5 23. Bxe6 fxe6 $18) 22... fxe6 $18) 20... Kg8 {[%emt 0:00:00]} (20... Qe8 $142 21. Qb6 Qd8) 21. Bxf5 {[%emt 0:04:54]} Nxf5 {[%emt 0:00:00]} 22. Nxf5 {[%emt 0:00:02]} gxf5 {[%emt 0:00:00]} 23. Bg5 {[%emt 0:00:38]} Qe8 {[%emt 0:00:00]} 24. Qxe8+ {[%emt 0:00:04]} Rxe8 {[%emt 0:00:22] Black did not feel at home in the position after the opening.  Weighted Error Value: White=0.19 (very precise) /Black=0.53} 1-0

[Event "2nd Serbia Open Masters 2022"]
[Site "Novi Sad"]
[Date "2022.06.28"]
[Round "1.16"]
[White "Ivanovic, Marko"]
[Black "Mendonca, Leon Luke"]
[Result "0-1"]
[ECO "B18"]
[WhiteElo "2294"]
[BlackElo "2551"]
[Annotator "TA"]
[PlyCount "84"]
[EventDate "2022.06.28"]
[EventType "swiss"]
[EventCountry "SRB"]
[SourceTitle "playchess.com"]
[Source "ChessBase"]
[SourceQuality "1"]
[TimeControl "40/5400+30:900+30"]

{[%evp 11,84,13,18,11,12,12,19,8,17,10,11,9,16,0,6,7,0,0,0,0,0,0,-4,-19,0,-16,-11,-67,-59,-61,-79,-84,-72,-78,0,0,0,-44,0,-158,-158,-244,-10,-253,-253,-522,-427,-434,-434,-418,-432,-641,-386,-1261,-1284,-1282,-406,-400,0,-1256,-1266,-1850,-1240,-1242,-1214,-1720,-1543,-1333,-1156,-1360,-1334,-29988,-29984,-29980,-29976]} 1. e4 {[%emt 0:00:05]} c6 {[%emt 0:00:34]} 2. d4 {[%emt 0:00:06]} d5 {[%emt 0:00:12]} 3. Nc3 {[%emt 0:00:07]} dxe4 {[%emt 0:00:40]} 4. Nxe4 {[%emt 0:00:06]} Bf5 {[%emt 0:00:26]} 5. Ng3 {[%emt 0:00:06]} Bg6 {[%emt 0:00:04]} 6. N1e2 {[%emt 0:00:05]} Nf6 {[%emt 0:04:44][%cal Oe7e5]} 7. h4 {[%emt 0:00:25] B18: Classical Caro-Kann: 4...Bf5 sidelines.} h6 {[%emt 0:02:24][%cal Oe7e5]} 8. Nf4 {[%emt 0:00:19]} Bh7 {[%emt 0:00:27][%cal Oe7e5]} 9. c3 {[%emt 0:00:40] The position is equal.} Nbd7 {[%emt 0:08:19][%cal Bb8d7,Bd7f6,Bf6g4][%mdl 32]} 10. Bd3 {[%emt 0:08:41]} Bxd3 {[%emt 0:01:42]} 11. Nxd3 {[%emt 0:00:08]} e6 {[%emt 0:00:49]} 12. Be3 {[%emt 0:16:03]} Bd6 {[%emt 0:09:13]} 13. Nh5 {[%emt 0:03:38] [#]} Qa5 $146 {[%emt 0:07:47]} ({Predecessor:} 13... Nxh5 14. Qxh5 Nf6 15. Qf3 Qa5 16. Ne5 Bxe5 17. dxe5 Nd7 18. O-O-O O-O-O 19. Qxf7 Qxa2 20. Qxg7 Nxe5 21. Qxe5 Qa1+ 22. Kc2 Qa4+ 23. Kc1 Qa1+ 24. Kc2 {½-½ (24) Pilnik,H-Eliskases,E Mar del Plata 1948}) 14. Nxf6+ {[%emt 0:01:05]} (14. Nxg7+ Kf8 15. Nxe6+ (15. b4 $2 Qd5 $19) 15... fxe6 $17) 14... Nxf6 {[%emt 0:00:38]} 15. Qb3 {[%emt 0:03:43]} O-O-O {[%emt 0:14:20]} 16. O-O-O {[%emt 0:01:20]} Ng4 {[%emt 0:02:25]} 17. Rhe1 {[%emt 0:04:43]} Qf5 {[%emt 0:05:57]} 18. g3 {[%emt 0:06:59]} g5 {[%emt 0:04:27][%cal Bg7g5,Bg5g4][%mdl 32]} 19. h5 {[%emt 0:06:46]} (19. d5 $11) 19... Nxe3 $15 {[%emt 0:13:42]} 20. Rxe3 {[%emt 0:01:12]} g4 {[%emt 0:00:44]} 21. Qc4 {[%emt 0:22:01]} Qxh5 {[%emt 0:03:10]} 22. Ne5 {[%emt 0:01:36][%cal Oe5c6] Threatens to win with Nxc6!} Qf5 {[%emt 0:03:32]} 23. Nxc6 $1 {[%emt 0:11:01]} bxc6 {[%emt 0:04:38]} 24. Qxc6+ {[%emt 0:00:01]} Bc7 $1 {[%emt 0:04:04]} 25. Re5 $2 {[%emt 0:09:14]} (25. c4 $1 $11) 25... Qf3 $17 {[%emt 0:02:01]} 26. d5 {[%emt 0:00:11] [#]} (26. Qxf3 $17 {was called for.} gxf3 27. Re3) 26... Kb8 $2 {[%emt 0:03:36]} (26... Rd6 $1 $19 {[%cal Rd6c6]} 27. Qa8+ Bb8) 27. Rd4 $2 {[%emt 0:00:29] [#]} Bb6 $1 $19 {[%emt 0:00:41]} ({Stronger than} 27... Qxf2 28. d6 Qg1+ 29. Kc2 $11) 28. Ree4 {[%emt 0:02:13]} (28. Rf4 Qh1+ 29. Kc2 Rxd5 30. Rxd5 Qxd5 31. Qxd5 exd5 32. Rxf7) 28... Rc8 {[%emt 0:01:13]} ({Weaker is} 28... Bxd4 29. Rxd4 a5 30. Qb6+ Kc8 31. Rc4+ Kd7 32. dxe6+ Ke8 33. exf7+ Kxf7 34. Qc7+ Kg6 35. Rc6+ Qxc6 36. Qxc6+ Kf5 37. Qc5+ Kg6 38. Qc6+ Kf5 39. Qc5+ Ke6 40. Qxa5 $18) 29. Qd6+ {[%emt 0:00:08]} Ka8 {[%emt 0:01:07]} 30. Rf4 {[%emt 0:00:35]} Qg2 {[%emt 0:01:20]} ({Not} 30... Rxc3+ $2 31. Kd2 Rd8 32. Qe7 Rc2+ 33. Kxc2 Qe2+ 34. Kb3 $19) 31. Ra4 {[%emt 0:01:10]} (31. Rd2 $142 Rhd8 32. Qe5) 31... Qf1+ {[%emt 0:00:26]} 32. Kc2 $2 {[%emt 0:00:13]} (32. Kd2 Bc5 33. Qa6 Qxa6 34. Rxa6) 32... Qe2+ {[%emt 0:00:26]} 33. Kc1 {[%emt 0:00:32]} Qe1+ {[%emt 0:00:05]} (33... Bxf2 $142 {( -> ...Be3+)} 34. Rfe4 Be3+ 35. Rxe3 Qxe3+ 36. Kc2 Qf2+ 37. Kb1 Rhd8) 34. Kc2 {[%emt 0:00:04] Black must now prevent Qxb6.} Qe2+ {[%emt 0:00:45]} (34... Bxf2 $142 35. Rfe4 Qg1) 35. Kc1 {[%emt 0:00:11] Qxb6 is the strong threat.} Bxf2 {[%emt 0:00:33]} 36. a3 {[%emt 0:01:45]} Be3+ {[%emt 0:00:41]} 37. Kb1 {[%emt 0:00:01]} Bxf4 {[%emt 0:00:35]} 38. Qxf4 {[%emt 0:00:40]} Qd1+ {[%emt 0:00:06]} 39. Ka2 {[%emt 0:00:03]} Qxd5+ {[%emt 0:00:05]} 40. c4 {[%emt 0:00:00]} Qc6 {[%emt 0:00:00]} 41. b3 {[%emt 0:00:26]} Rhd8 {[%emt 0:01:09]} 42. Qf2 {[%emt 0:00:14]} Rc7 {[%emt 0:00:17] Weighted Error Value: White=0.62/Black=0.51} 0-1

[Event "2nd Serbia Open Masters 2022"]
[Site "Novi Sad"]
[Date "2022.06.28"]
[Round "1.17"]
[White "Basso, Pier Luigi"]
[Black "Eric, Jovana"]
[Result "1-0"]
[ECO "D17"]
[WhiteElo "2570"]
[BlackElo "2301"]
[Annotator "TA"]
[PlyCount "107"]
[EventDate "2022.06.28"]
[EventType "swiss"]
[EventCountry "SRB"]
[SourceTitle "playchess.com"]
[Source "ChessBase"]
[SourceQuality "1"]
[TimeControl "40/5400+30:900+30"]

{[%evp 13,107,6,45,38,45,26,40,43,25,33,62,63,77,74,76,81,91,83,143,37,148,150,149,137,131,109,75,58,102,90,89,98,90,91,194,164,168,161,173,115,208,202,239,236,269,264,293,287,277,276,270,270,338,348,345,338,352,351,366,378,352,347,389,389,549,525,414,343,646,646,574,454,454,454,680,664,1356,1303,1131,1120,1049,807,1022,1004,936,902,1356,1352,885,694,736,678,1048,980,29988,29987]} 1. d4 {[%emt 0:00:07]} d5 {[%emt 0:00:09]} 2. c4 {[%emt 0:00:05]} c6 {[%emt 0:00:14]} 3. Nf3 {[%emt 0:00:07]} Nf6 {[%emt 0:00:07]} 4. Nc3 {[%emt 0:00:16]} dxc4 {[%emt 0:00:37]} 5. a4 {[%emt 0:00:09]} Bf5 {[%emt 0:00:25]} 6. Ne5 {[%emt 0:00:07]} e6 {[%emt 0:01:36]} 7. f3 {[%emt 0:01:14]} c5 {[%emt 0:01:44]} (7... Bb4 {seems wilder.} 8. e4 Bxe4 9. fxe4 Nxe4 10. Bd2 Qxd4 11. Nxe4 Qxe4+ 12. Qe2 Bxd2+ 13. Kxd2 Qd5+) 8. e4 {[%emt 0:00:54] D17: Slav Defence: 5 a4 Bf5: Lines with 6 Nh4 and 6 Ne5.} Bg6 {[%emt 0:00:03] 8...Bg6 scores better than 8...cxd4.} (8... Qxd4 $2 9. Bf4 Qxd1+ 10. Rxd1 $16) 9. Be3 {[%emt 0:00:22]} cxd4 {[%emt 0:01:12]} 10. Qxd4 {[%emt 0:00:06] White is slightly better.} Qxd4 {[%emt 0:01:57]} 11. Bxd4 {[%emt 0:00:08]} Nbd7 {[%emt 0:09:52]} 12. Nxc4 {[%emt 0:06:01] White is more active.} Bb4 {[%emt 0:06:50]} 13. Kf2 {[%emt 0:02:52]} O-O {[%emt 0:07:47]} 14. Be2 {[%emt 0:03:44]} Rfd8 {[%emt 0:06:16]} 15. Rhd1 {[%emt 0:02:09] [#]} Bc5 $146 {[%emt 0:12:13]} (15... a6 $142) ({Predecessor:} 15... Nc5 16. Be3 Nfd7 17. Na2 Na6 18. Rxd7 Rxd7 19. Ne5 Rc7 20. Nxg6 hxg6 21. Bxa6 Rc2+ {1-0 (78) Bluvshtein,M (2544)-Feher,G (2390) Zalakaros 2008}) 16. Ke3 {[%emt 0:04:51]} (16. Nb5 $16) 16... Kf8 {[%emt 0:03:50]} (16... Be7 $14) 17. Bxc5+ $1 $16 {[%emt 0:04:41]} Nxc5 {[%emt 0:00:05]} 18. b4 {[%emt 0:00:26]} Na6 {[%emt 0:04:11]} (18... Nb3 $2 19. Rab1 $18) 19. Rxd8+ {[%emt 0:06:15]} Rxd8 {[%emt 0:00:06]} 20. Rb1 {[%emt 0:01:45]} (20. Na2 {looks sharper.} Nb8 21. Na5 b6 22. Nc4) 20... Rc8 {[%emt 0:17:17]} 21. Rb3 {[%emt 0:00:33]} Nc7 {[%emt 0:04:15]} 22. Nb5 {[%emt 0:08:00]} Nxb5 {[%emt 0:00:21]} 23. axb5 {[%emt 0:00:03] Ra3 is the strong threat.} Nd7 {[%emt 0:01:14]} (23... Rc7 $16) 24. Ra3 $18 {[%emt 0:01:02]} Ra8 {[%emt 0:04:31]} 25. Na5 {[%emt 0:05:14]} Rb8 {[%emt 0:02:49] [#]} 26. Rc3 {[%emt 0:00:14]} (26. Nb3 $1 $18) 26... b6 {[%emt 0:04:45]} (26... Ke8 $16) 27. Nc6 {[%emt 0:01:05][%csl LRa7,LRb8]} Rc8 {[%emt 0:00:29]} 28. Ra3 {[%emt 0:00:37]} Rc7 {[%emt 0:00:36]} 29. Nxa7 {[%emt 0:01:17]} Nb8 {[%emt 0:00:26] [#]} 30. Nc6 $1 {[%emt 0:01:06]} Nxc6 {[%emt 0:01:18]} 31. Rc3 {[%emt 0:00:19][%mdl 64] Pin} ({Not} 31. bxc6 Rxc6 32. Ra8+ Ke7 $16) 31... Ke7 {[%emt 0:02:40][%cal Oe7d6]} 32. bxc6 {[%emt 0:00:09][%mdl 4096] Endgame KRB-KRB} ({Don't take} 32. Rxc6 $6 Rxc6 33. bxc6 Kd6 $16) 32... e5 {[%emt 0:00:57]} 33. b5 {[%emt 0:00:33]} f6 {[%emt 0:00:24]} 34. Bc4 {[%emt 0:00:22]} Ra7 {[%emt 0:01:07]} 35. g3 {[%emt 0:00:28]} Kd6 {[%emt 0:00:52]} 36. Rd3+ {[%emt 0:00:19]} Ke7 {[%emt 0:00:05]} 37. f4 {[%emt 0:00:33]} exf4+ {[%emt 0:00:47]} 38. gxf4 {[%emt 0:00:07]} h6 {[%emt 0:01:06]} (38... Be8 {was necessary.} 39. Bg8 h6) 39. h4 {[%emt 0:01:42]} Be8 {[%emt 0:01:10]} 40. Kd4 {[%emt 0:00:00] And now Rg3 would win.} Ra8 $2 {[%emt 0:00:00]} (40... Ra4 41. Kc3 Ra3+ 42. Bb3 Ra5) 41. Rg3 {[%emt 0:00:43]} g6 {[%emt 0:06:57]} 42. Rg1 {[%emt 0:00:45]} Ra4 {[%emt 0:02:41]} 43. Kc3 {[%emt 0:00:33]} Ra3+ {[%emt 0:01:16]} (43... Kd6 $142 44. e5+ fxe5 45. fxe5+ Ke7) 44. Kb4 {[%emt 0:02:49]} Ra7 {[%emt 0:00:44]} 45. f5 {[%emt 0:01:12]} g5 {[%emt 0:00:40]} 46. hxg5 {[%emt 0:00:01]} hxg5 {[%emt 0:00:15]} 47. Rd1 {[%emt 0:00:39]} Ra8 {[%emt 0:01:54]} 48. Be6 {[%emt 0:00:13] Black must now prevent c7.} Ra7 {[%emt 0:00:28]} 49. Rd2 {[%emt 0:00:22]} Rc7 {[%emt 0:03:05]} 50. Kc4 {[%emt 0:00:48]} Ra7 {[%emt 0:00:26]} 51. Rh2 {[%emt 0:00:57] White wants to mate with Rh7+.} Kd6 {[%emt 0:00:55]} 52. Rh8 {[%emt 0:00:10]} Re7 {[%emt 0:02:15]} 53. Kd4 {[%emt 0:00:03]} Kc7 {[%emt 0:01:25]} 54. e5 {[%emt 0:00:09] Weighted Error Value: White=0.18 (very precise) /Black=0.60} 1-0

[Event "2nd Serbia Open Masters 2022"]
[Site "Novi Sad"]
[Date "2022.06.28"]
[Round "1.18"]
[White "Peycheva, Gergana"]
[Black "Ivanisevic, Ivan"]
[Result "1/2-1/2"]
[ECO "D35"]
[WhiteElo "2295"]
[BlackElo "2550"]
[Annotator "TA"]
[PlyCount "140"]
[EventDate "2022.06.28"]
[EventType "swiss"]
[EventCountry "SRB"]
[SourceTitle "playchess.com"]
[Source "ChessBase"]
[SourceQuality "1"]
[TimeControl "40/5400+30:900+30"]

{[%evp 15,140,18,18,6,14,12,25,4,11,-1,19,14,25,23,37,28,41,15,19,19,12,4,2,0,0,0,0,0,0,-11,0,-9,-15,-13,-6,-19,-13,-20,-19,-21,-12,-14,-9,-24,-10,-14,-18,-64,-66,-88,-6,-9,0,0,0,0,0,0,0,0,0,0,0,0,0,0,0,0,0,0,0,0,0,0,0,0,0,0,0,0,0,0,0,0,0,0,0,0,0,0,0,0,0,0,0,0,0,0,0,0,0,0,0,0,0,0,0,0,0,0,0,0,0,0,0,0,0,0,0,0,0,0,0,0,0,0,0]} 1. d4 {[%emt 0:00:05]} Nf6 {[%emt 0:00:24]} 2. c4 {[%emt 0:00:43]} e6 {[%emt 0:00:21]} 3. Nc3 {[%emt 0:01:12]} d5 {[%emt 0:01:07]} 4. cxd5 {[%emt 0:02:02]} exd5 {[%emt 0:00:07]} 5. Bg5 {[%emt 0:00:38]} c6 {[%emt 0:00:09]} 6. e3 {[%emt 0:01:39]} Nbd7 {[%emt 0:01:38][%cal Bb8d7,Bd7f8,Bf8e6][%mdl 32]} 7. Bd3 {[%emt 0:01:35]} Be7 {[%emt 0:00:10]} 8. Nge2 {[%emt 0:01:12]} Nf8 {[%emt 0:00:51]} 9. O-O {[%emt 0:02:58] D35: Queen's Gambit Declined: Exchange Variation.} Ne6 {[%emt 0:00:20]} 10. Bh4 {[%emt 0:01:32]} O-O {[%emt 0:00:52]} 11. f3 $1 {[%emt 0:05:13][%mdl 4] White has an edge. is more profitable than 11.Qc2 at the moment.} b6 {[%emt 0:05:15] [#]} 12. Re1 $146 {[%emt 0:07:21]} ({Predecessor:} 12. Qc2 g6 13. Rad1 Bb7 14. Kh1 Nh5 15. Bf2 f5 16. e4 fxe4 17. fxe4 Nhf4 18. Nxf4 Nxf4 19. exd5 Nxd3 20. Qxd3 cxd5 21. Bg3 {½-½ (30) Nihal,S (2620)-Sjugirov,S (2661) Krasnaya Polyana 2021}) 12... g6 {[%emt 0:01:14]} 13. Qd2 {[%emt 0:01:28]} Bb7 {[%emt 0:01:15]} 14. Rad1 {[%emt 0:02:43]} Rc8 {[%emt 0:06:20]} 15. Bc2 {[%emt 0:05:30]} b5 {[%emt 0:18:36]} 16. Bf2 {[%emt 0:08:12]} Nh5 {[%emt 0:06:30]} 17. Ng3 {[%emt 0:05:37]} Nxg3 {[%emt 0:04:48]} 18. Bxg3 {[%emt 0:01:24]} b4 {[%emt 0:00:53]} 19. Ne2 {[%emt 0:03:01]} c5 {[%emt 0:01:17]} 20. dxc5 {[%emt 0:01:43]} Bxc5 {[%emt 0:00:37]} 21. Bb3 {[%emt 0:02:10]} Re8 {[%emt 0:02:28]} 22. Bf2 {[%emt 0:03:11][%cal Rb3d5]} Qb6 {[%emt 0:04:55]} 23. Nd4 {[%emt 0:01:57]} Nxd4 {[%emt 0:05:29]} 24. exd4 {[%emt 0:00:22]} Bf8 {[%emt 0:00:38]} 25. Rxe8 {[%emt 0:03:30]} Rxe8 {[%emt 0:00:56]} 26. Re1 {[%emt 0:01:03]} Rxe1+ {[%emt 0:01:06]} 27. Qxe1 {[%emt 0:00:15]} Bc6 {[%emt 0:00:17]} 28. Qe3 {[%emt 0:03:12]} a5 {[%emt 0:02:36][%cal Ba7a5,Ba5a4][%mdl 32]} 29. h4 {[%emt 0:04:10]} a4 {[%emt 0:00:56]} 30. Bc2 {[%emt 0:00:30]} Bb5 {[%emt 0:00:46]} 31. h5 {[%emt 0:05:32]} (31. Bg3 $11 {deserves consideration.}) 31... Qc7 $15 {[%emt 0:01:37]} 32. Qd2 {[%emt 0:04:23] [#]} Qc4 {[%emt 0:05:45]} (32... Bd6 $1 $17 {With the idea ...a3.} 33. Qd1 gxh5) 33. b3 {[%emt 0:02:18] The position is equal.} Qf1+ {[%emt 0:01:55]} 34. Kh2 {[%emt 0:02:20]} a3 {[%emt 0:04:05]} 35. Bg3 {[%emt 0:02:53]} Qe2 {[%emt 0:07:17]} 36. Qxe2 {[%emt 0:06:24]} Bxe2 {[%emt 0:00:06]} 37. hxg6 {[%emt 0:00:50]} fxg6 $11 {[%emt 0:03:17][%mdl 4096] Endgame KBB-KBB} 38. Kg1 {[%emt 0:02:25]} Kf7 {[%emt 0:00:28]} 39. Kf2 {[%emt 0:00:23]} Bb5 {[%emt 0:00:04]} 40. Ke3 {[%emt 0:00:00]} h5 {[%emt 0:00:00]} 41. Bd3 {[%emt 0:04:00]} Bxd3 {[%emt 0:05:42]} 42. Kxd3 {[%emt 0:00:27] KB-KB} Ke6 {[%emt 0:00:06]} 43. Bc7 {[%emt 0:06:03]} Kf5 {[%emt 0:02:02]} 44. Ke3 {[%emt 0:01:56]} Bh6+ {[%emt 0:01:14]} 45. Ke2 $1 {[%emt 0:01:14] [#] aiming for Bd6.} Bf4 {[%emt 0:05:35] Inhibits Bd6.} 46. Bb6 {[%emt 0:04:00]} Bd6 {[%emt 0:03:58]} 47. Ke3 {[%emt 0:00:55] Threatens to win with Bc5.} g5 {[%emt 0:00:16]} 48. Bc5 {[%emt 0:03:18]} Bxc5 {[%emt 0:04:38]} 49. dxc5 {[%emt 0:00:06] KP-KP} Ke5 {[%emt 0:00:03]} 50. Kd3 {[%emt 0:01:16]} h4 {[%emt 0:00:06]} 51. Ke3 {[%emt 0:00:18]} d4+ {[%emt 0:00:29]} 52. Kd3 {[%emt 0:00:05] White wants to mate with c6.} Kd5 {[%emt 0:00:03]} 53. c6 $1 {[%emt 0:00:18]} Kxc6 {[%emt 0:00:05]} 54. Kxd4 {[%emt 0:00:03]} Kd6 {[%emt 0:00:04]} 55. Kc4 {[%emt 0:03:04]} Ke5 {[%emt 0:00:05]} 56. Kxb4 {[%emt 0:00:06]} Kf4 {[%emt 0:00:04]} 57. Kxa3 {[%emt 0:00:51]} Kg3 {[%emt 0:00:27]} 58. b4 $1 {[%emt 0:00:02]} (58. f4 gxf4 59. b4 f3 60. gxf3 h3 61. b5 h2 62. Kb3 h1=Q 63. Kc4 Qa1 64. b6 Qxa2+ 65. Kb5 Qa8 66. Kc4 Kxf3 67. Kd4 Qc6 68. b7 Qxb7 69. Kc5 Ke4 70. Kd6 Qd5+ 71. Kc7 Ke5 72. Kc8 Kd6 73. Kb8 Qb3+ 74. Ka7 Kc6 75. Ka8 Qb7#) 58... Kxg2 {[%emt 0:00:07] K3P-KPP} 59. b5 {[%emt 0:00:02]} h3 {[%emt 0:00:08]} (59... Kxf3 $2 60. b6 g4 61. b7 $18) 60. b6 {[%emt 0:00:03]} h2 {[%emt 0:00:06]} (60... Kxf3 $2 61. b7 g4 62. b8=Q $18) 61. b7 {[%emt 0:00:06]} h1=Q {[%emt 0:00:23]} (61... Kxf3 62. b8=Q Kg2 63. Qb2+ Kg3 64. Qb7 Kh3 65. Kb4 g4 66. a4) 62. b8=Q {[%emt 0:00:07] Prevents Qb1. KQ-KQ} Qd1 {[%emt 0:02:32]} 63. Qb2+ {[%emt 0:02:13]} Kxf3 {[%emt 0:01:31]} 64. Qf6+ {[%emt 0:00:02]} Kg4 {[%emt 0:00:08] ( -> ...Qf3+)} 65. Kb2 {[%emt 0:01:10]} Qe2+ {[%emt 0:00:38]} 66. Kb3 {[%emt 0:00:34]} Qe3+ {[%emt 0:00:41]} 67. Kb2 {[%emt 0:00:28]} Kg3 {[%emt 0:00:49]} 68. Qc3 {[%emt 0:01:22]} Kf2 {[%emt 0:00:14]} 69. Qxe3+ {[%emt 0:00:36]} Kxe3 {[%emt 0:00:05]} 70. a4 $1 {[%emt 0:00:01] White threatens a5 and mate.} Kd4 {[%emt 0:01:02] Weighted Error Value: White=0.05 (flawless) /Black=0.05 (flawless)} (70... g4 $5 71. a5 Kf4 $11) 1/2-1/2